[Event "Romanian Superleague 2022"]
[Site "Oradea"]
[Date "2022.09.21"]
[Round "1.6"]
[White "Bulau, Andrei-Cristian"]
[Black "Gulie, Cosmin"]
[Result "0-1"]
[ECO "D35"]
[WhiteElo "2183"]
[BlackElo "1973"]
[Annotator "TA"]
[PlyCount "60"]
[EventDate "2022.09.21"]
[EventType "team-tourn"]
[EventCountry "ROU"]
[SourceTitle "playchess.com"]
[Source "ChessBase"]
[SourceQuality "1"]
[TimeControl "40/5400+30:1800+30"]

{[%evp 18,60,34,36,40,26,33,14,16,11,53,52,52,52,65,65,69,66,66,54,56,20,15,-45,4,-49,-61,-47,-42,-116,-143,-305,-295,-360,-359,-427,-277,-729,-719,-697,-684,-689,-414,-669,-647]} 1. d4 {[%emt 0:00:04]} d5 {[%emt 0:00:24]} 2. c4 {[%emt 0:00:21]} e6 {[%emt 0:00:14]} 3. Nc3 {[%emt 0:00:14]} Nf6 {[%emt 0:00:16]} 4. cxd5 {[%emt 0:00:36]} exd5 {[%emt 0:00:12]} 5. Bg5 {[%emt 0:00:16]} c6 {[%emt 0:00:58]} 6. e3 {[%emt 0:00:15]} Bf5 {[%emt 0:01:10]} 7. Qf3 {[%emt 0:01:16]} Bg6 {[%emt 0:00:31]} 8. Bxf6 {[%emt 0:00:14]} Qxf6 {[%emt 0:00:05]} 9. Qxf6 {[%emt 0:00:06]} gxf6 {[%emt 0:00:07]} 10. h4 {[%emt 0:00:05]} h5 $1 {[%emt 0:00:37] 10...h5 is better than 10...Nd7. D35: Queen's Gambit Declined: Exchange Variation.} 11. Nf3 {[%emt 0:01:27]} Nd7 {[%emt 0:00:28][%cal Bb8d7,Bd7f6,Bf6e4][%mdl 32]} 12. Kd2 {[%emt 0:00:14][%cal Be1d2,Bd2d3,Bd3e2][%mdl 32]} Bd6 {[%emt 0:08:03] [#] The position is equal.} 13. Bd3 $146 {[%emt 0:00:25]} ({Predecessor:} 13. Ne1 Nf8 14. Nd3 Ne6 15. Rb1 a5 16. a3 Ke7 17. b4 Rhb8 18. Be2 Nf8 19. Rb3 axb4 20. axb4 {0-1 (38) Granath,S-Hunt,H (2165) Szeged 1994}) 13... Bxd3 {[%emt 0:03:37]} 14. Kxd3 {[%emt 0:00:07]} f5 {[%emt 0:00:31]} 15. g3 {[%emt 0:05:47]} Nf6 {[%emt 0:00:59]} 16. Rhc1 {[%emt 0:05:55]} Ne4 {[%emt 0:00:49]} 17. Ke2 {[%emt 0:00:20]} Rg8 {[%emt 0:01:01][%cal Bh8g8,Bg8g3,Bg3h3][%mdl 32]} 18. Rab1 {[%emt 0:04:06]} Kd7 {[%emt 0:10:15]} 19. Ne1 {[%emt 0:10:51]} Rae8 {[%emt 0:04:15]} 20. Nd3 {[%emt 0:00:39] [#]} (20. b4 $11) 20... a5 {[%emt 0:18:27]} (20... Nxg3+ $1 $15 21. fxg3 Rxg3 22. Ne5+ Bxe5 23. dxe5 Rxe5) 21. Rc2 {[%emt 0:06:18] [#]} ({Better is} 21. Rg1 $11) 21... Nxg3+ $1 $15 {[%emt 0:11:04]} 22. fxg3 {[%emt 0:01:07]} Rxg3 {[%emt 0:02:23]} 23. Nd1 {[%emt 0:15:33] [#]} ({White should try} 23. Ne5+ $15 Bxe5 24. dxe5) 23... f4 $1 $17 {[%emt 0:01:37][%cal Rf4e3] Black is more active.} 24. Nc5+ $2 {[%emt 0:03:24] Now White is beyond hope.} (24. Rcc1 $17) 24... Bxc5 $19 {[%emt 0:01:05]} 25. Rxc5 {[%emt 0:00:35]} fxe3 {[%emt 0:00:25]} 26. Rcc1 {[%emt 0:08:55]} Rh3 {[%emt 0:02:35] aiming for ...f5.} ({But not} 26... Rg2+ $2 27. Kf3 Rh2 28. Kg3 $19) 27. Nc3 $2 {[%emt 0:11:22] [#]} (27. b4 Rh2+ 28. Ke1) 27... Rh2+ $1 {[%emt 0:00:32]} 28. Kf3 {[%emt 0:00:12]} Rf2+ {[%emt 0:00:27]} 29. Kg3 {[%emt 0:00:03]} Rg8+ {[%emt 0:00:10]} 30. Kh3 {[%emt 0:00:06]} Rfg2 {[%emt 0:00:06] Weighted Error Value: White=0.63/Black=0.12 (very precise)} 0-1

[Event "Romanian Superleague 2022"]
[Site "Oradea"]
[Date "2022.09.21"]
[Round "1.7"]
[White "Berkes, Ferenc"]
[Black "Marin, Mihail"]
[Result "1-0"]
[ECO "A40"]
[WhiteElo "2651"]
[BlackElo "2457"]
[Annotator "TA"]
[PlyCount "97"]
[EventDate "2022.09.21"]
[EventType "team-tourn"]
[EventCountry "ROU"]
[SourceTitle "playchess.com"]
[Source "ChessBase"]
[SourceQuality "1"]
[TimeControl "40/5400+30:1800+30"]

{[%evp 9,97,16,17,0,22,17,12,13,20,22,66,56,44,32,50,41,43,16,43,0,0,8,56,50,56,51,60,50,57,50,64,5,17,31,22,21,29,0,0,-8,-10,-22,-14,0,0,-15,8,0,6,9,43,30,39,39,100,84,142,108,112,57,114,75,112,110,143,77,100,65,102,87,131,127,124,111,129,109,248,230,235,226,402,402,420,411,658,643,962,942,836,601]} 1. d4 {[%emt 0:00:05]} g6 {[%emt 0:00:08]} 2. g3 {[%emt 0:01:25]} Bg7 {[%emt 0:00:07]} 3. Bg2 {[%emt 0:00:03]} d6 {[%emt 0:00:38]} 4. a4 {[%emt 0:04:23] [#]} a5 $146 {[%emt 0:05:41]} ({Predecessor:} 4... Nc6 5. Nf3 e5 6. d5 Nce7 7. O-O Nf6 8. c4 a5 9. Nc3 O-O 10. Ne1 Nd7 11. Nd3 f5 {1-0 (69) Gorbatov,A (2350)-Hantak,A (2161) Cesky Krumlov 2009}) 5. Nf3 {[%emt 0:06:33]} f5 {[%emt 0:02:19]} 6. b3 {[%emt 0:09:24] A40: Unusual replies to 1 d4.} Nf6 {[%emt 0:01:30]} 7. Bb2 {[%emt 0:00:35]} O-O {[%emt 0:00:11]} 8. O-O {[%emt 0:00:11] The position is equal.} Qe8 {[%emt 0:00:17]} 9. Na3 {[%emt 0:01:09]} Kh8 {[%emt 0:03:05]} 10. Re1 {[%emt 0:07:35]} Na6 {[%emt 0:12:23]} 11. Nc4 {[%emt 0:01:07]} Nb4 {[%emt 0:02:52]} 12. e3 {[%emt 0:09:22]} e6 {[%emt 0:05:26]} 13. Re2 {[%emt 0:01:52]} Bd7 {[%emt 0:02:11][%cal Bc8d7,Bd7c6,Bc6d5][%mdl 32]} 14. Ne1 {[%emt 0:06:40]} Bc6 {[%emt 0:03:55]} 15. f3 {[%emt 0:00:15] Threatening c3.} b6 {[%emt 0:09:12]} (15... b5 $1 $11 {is more appropriate.} 16. axb5 Bxb5) 16. c3 $14 {[%emt 0:02:32]} Na6 {[%emt 0:03:29]} 17. Nd3 {[%emt 0:01:55] Against e5} Bd5 {[%emt 0:03:36]} 18. Ba3 {[%emt 0:10:10]} Rf7 {[%emt 0:02:37]} 19. Qc2 {[%emt 0:09:33]} Rd8 {[%emt 0:02:07]} 20. e4 {[%emt 0:05:24]} (20. Nd2 $14) 20... fxe4 $11 {[%emt 0:04:16]} 21. fxe4 {[%emt 0:00:05]} Bxc4 {[%emt 0:00:06]} 22. bxc4 {[%emt 0:00:05] Strongly threatening e5.} e5 {[%emt 0:00:08]} 23. Rf1 {[%emt 0:06:17]} (23. Qb3 {feels hotter.} Ng4 24. Qb5 Nb8 25. Qxe8+ Rxe8 26. h3) 23... Nd7 {[%emt 0:03:34] ...Rxf1+ is the strong threat.} 24. Bb2 {[%emt 0:00:30]} Rxf1+ {[%emt 0:02:24]} 25. Bxf1 {[%emt 0:00:05]} Nab8 {[%emt 0:01:42]} 26. Bh3 {[%emt 0:02:14]} Nf8 {[%emt 0:03:03]} 27. c5 {[%emt 0:02:01]} bxc5 {[%emt 0:03:49]} 28. dxc5 {[%emt 0:00:06]} Ne6 {[%emt 0:03:14]} 29. cxd6 {[%emt 0:00:32]} cxd6 {[%emt 0:01:07]} 30. Qb3 {[%emt 0:01:06]} Ng5 {[%emt 0:01:05]} 31. Bg2 $36 {[%emt 0:00:09][%mdl 2048] White fights for an advantage.} Nc6 {[%emt 0:01:05]} (31... Nd7 $14) 32. Bc1 $16 {[%emt 0:00:10][%cal Bb2c1,Bc1e3,Be3f2][%mdl 32]} Ne6 {[%emt 0:07:00]} (32... Nf7 $142) 33. Be3 {[%emt 0:00:22]} Rb8 {[%emt 0:00:51]} 34. Qa2 {[%emt 0:00:36] White is much more active.} (34. Qd5 $16) 34... Bf6 {[%emt 0:01:23]} (34... Ncd8 $14) 35. Rb2 {[%emt 0:00:21]} (35. Rf2 {seems wilder.} Kg7 36. Qd5 Bg5 37. Bxg5 Nxg5 38. h4) 35... Bg5 {[%emt 0:01:11] And now ...Rxb2 would win.} 36. Bf2 {[%emt 0:06:21]} Rxb2 {[%emt 0:01:54]} 37. Qxb2 {[%emt 0:00:09]} (37. Nxb2 $142 {aiming for Qd5.} Bd2 38. Nd1) 37... Qb8 {[%emt 0:00:17]} 38. Qa2 {[%emt 0:03:28]} Ned8 {[%emt 0:00:50]} 39. h4 {[%emt 0:00:06]} Be7 {[%emt 0:03:43]} 40. Bh3 {[%emt 0:00:00]} Qb7 {[%emt 0:00:00]} 41. Qc4 {[%emt 0:04:51]} Kg7 {[%emt 0:07:23]} 42. Qb5 {[%emt 0:02:54]} h5 {[%emt 0:05:49] [#] Loses the game.} (42... Bf6 $16 43. Nb2 Ne7) 43. Nb2 $1 $18 {[%emt 0:02:59]} Nb8 {[%emt 0:04:43] [#]} 44. Nc4 $1 {[%emt 0:05:23]} Qxe4 $2 {[%emt 0:08:49]} (44... Qc6 45. Nb6 (45. Nxa5 Qxc3 46. Bf1 Qc8 $18) 45... Qxc3) 45. Nxa5 {[%emt 0:00:07]} Qc2 {[%emt 0:07:41]} 46. Qxb8 {[%emt 0:01:38]} Qxc3 {[%emt 0:00:52]} (46... Qxa4 $142 47. Qc7 Kf8) 47. Qb5 {[%emt 0:03:45] White is clearly winning.} e4 {[%emt 0:00:21]} 48. Nc4 {[%emt 0:00:13] Inhibits e3.} Nf7 {[%emt 0:00:34]} 49. Qb2 {[%emt 0:01:05] Weighted Error Value: White=0.13 (very precise) /Black=0.33} 1-0

[Event "Romanian Superleague 2022"]
[Site "Oradea"]
[Date "2022.09.21"]
[Round "1.8"]
[White "Miron, Lucian-Costin"]
[Black "Lupulescu, Constantin"]
[Result "1/2-1/2"]
[ECO "C07"]
[WhiteElo "2498"]
[BlackElo "2614"]
[Annotator "TA"]
[PlyCount "61"]
[EventDate "2022.09.21"]
[EventType "team-tourn"]
[EventCountry "ROU"]
[SourceTitle "playchess.com"]
[Source "ChessBase"]
[SourceQuality "1"]
[TimeControl "40/5400+30:1800+30"]

{[%evp 15,61,20,13,20,9,0,8,0,8,8,32,25,24,30,24,30,33,11,18,15,7,0,0,0,55,-27,-20,-80,-123,-87,-9,-37,-37,-109,-81,-91,-89,-93,-124,-127,-68,-69,-74,-57,-75,-67,-39,-56]} 1. e4 {[%emt 0:00:01]} e6 {[%emt 0:00:05]} 2. d4 {[%emt 0:00:03]} d5 {[%emt 0:00:06]} 3. Nd2 {[%emt 0:00:04]} c5 {[%emt 0:00:07]} 4. Ngf3 {[%emt 0:00:04]} cxd4 {[%emt 0:00:05]} 5. Nxd4 {[%emt 0:00:04]} Nc6 {[%emt 0:00:16]} 6. Bb5 {[%emt 0:00:10]} Bd7 {[%emt 0:00:07]} 7. Nxc6 {[%emt 0:00:06]} bxc6 {[%emt 0:00:03]} 8. Bd3 {[%emt 0:00:07]} Qc7 {[%emt 0:00:33]} 9. Qe2 {[%emt 0:00:27] C07: French Tarrasch: 3...c5, 4 Ngf3 and 4 exd5 Qxd5.} Ne7 {[%emt 0:00:23][%cal Bg8e7,Be7g6,Bg6e5][%mdl 32]} 10. b3 {[%emt 0:00:09] 10.0-0 is becoming the main line.} Ng6 {[%emt 0:04:44][%cal Of7f5]} 11. g3 {[%emt 0:00:09] The position is equal.} Ne5 {[%emt 0:10:21]} 12. Bb2 {[%emt 0:00:35]} Bd6 {[%emt 0:01:43] [#]} 13. Ba6 $146 {[%emt 0:01:54]} ({Predecessor:} 13. O-O O-O 14. c4 dxc4 15. Nxc4 Nxc4 16. Bxc4 c5 17. f4 Rfd8 18. Qg4 Bf8 19. f5 {1-0 (30) Azarov,S (2604)-Kostenko,P (2418) Cheliabinsk 2021}) 13... f6 {[%emt 0:03:42]} 14. f4 {[%emt 0:28:07]} Nf7 {[%emt 0:00:26]} 15. O-O-O {[%emt 0:00:07]} O-O {[%emt 0:03:01]} 16. Bd3 {[%emt 0:17:48]} e5 {[%emt 0:25:14]} 17. f5 {[%emt 0:05:23]} Qa5 {[%emt 0:03:00]} 18. Kb1 {[%emt 0:04:52]} Ba3 {[%emt 0:01:05]} 19. g4 {[%emt 0:00:53]} Qc5 {[%emt 0:11:47]} (19... Bxb2 $11 20. Kxb2 Qc5) 20. h4 {[%emt 0:19:30]} ({White should try} 20. Bxa3 $14 Qxa3 21. Qg2) 20... a5 $11 {[%emt 0:00:39]} 21. Ba1 {[%emt 0:00:57]} (21. c3 $11 {keeps the balance.}) 21... a4 {[%emt 0:07:25]} 22. g5 {[%emt 0:00:30]} Bb4 {[%emt 0:03:45]} ({Don't do} 22... fxg5 23. hxg5 Nxg5 24. exd5 Rxf5 25. Ne4 (25. Bxe5 Re8 $11) 25... Nxe4 26. Bxe4 axb3 27. cxb3 $18 (27. axb3 Bc1 $11)) (22... Qa7 $17 {White must now prevent ...Be7.} 23. Qg2 Kh8 24. exd5 axb3 25. cxb3 Rfb8 26. gxf6 gxf6) 23. Rhg1 {[%emt 0:05:09] And now gxf6 would win.} Kh8 {[%emt 0:03:32] ...Qa7 is the strong threat.} 24. Qg2 {[%emt 0:04:19] [#]} (24. Nf3 $15) 24... Rg8 $1 $17 {[%emt 0:00:58] Hoping for ...axb3.} 25. c3 {[%emt 0:07:09]} Bxc3 {[%emt 0:01:22]} 26. Rc1 {[%emt 0:00:06]} d4 {[%emt 0:00:21][%cal Bd5d4,Bd4c3][%mdl 32] Strongly threatening ...Qb4.} 27. Bc4 {[%emt 0:00:25] [#]} axb3 $1 {[%emt 0:08:32]} 28. Bxb3 $15 {[%emt 0:00:24]} ({Don't blunder} 28. Bxc3 $2 dxc3 29. Bxb3 Qd4 $19) 28... Qb4 {[%emt 0:04:14]} 29. Bxc3 {[%emt 0:01:18]} dxc3 {[%emt 0:00:05]} 30. Nc4 {[%emt 0:00:10]} c5 {[%emt 0:02:07]} (30... fxg5 $5 {[%cal Rg8b8]} 31. Qh3 gxh4 32. Qxc3 Qxc3 33. Rxc3 Rab8 $17) 31. Qc2 {[%emt 0:01:25] Weighted Error Value: White=0.17 (very precise) /Black=0.15 (very precise)} 1/2-1/2

[Event "Romanian Superleague 2022"]
[Site "Oradea"]
[Date "2022.09.21"]
[Round "1.9"]
[White "Jianu, Vlad-Cristian"]
[Black "Secheres, Adrian-Simion"]
[Result "1/2-1/2"]
[ECO "A48"]
[WhiteElo "2511"]
[BlackElo "2375"]
[Annotator "TA"]
[PlyCount "66"]
[EventDate "2022.09.21"]
[EventType "team-tourn"]
[EventCountry "ROU"]
[SourceTitle "playchess.com"]
[Source "ChessBase"]
[SourceQuality "1"]
[TimeControl "40/5400+30:1800+30"]

{[%evp 22,66,9,6,14,0,10,0,24,0,0,-1,0,0,4,3,16,0,3,0,0,0,14,23,20,25,66,61,79,75,85,93,111,97,125,112,120,126,114,120,133,0,106,0,126,0,95]} 1. d4 {[%emt 0:00:03]} Nf6 {[%emt 0:00:15]} 2. Nf3 {[%emt 0:00:10]} g6 {[%emt 0:00:25]} 3. Nbd2 {[%emt 0:01:17]} c5 {[%emt 0:00:51]} 4. dxc5 {[%emt 0:00:07]} Qa5 {[%emt 0:00:21]} 5. a3 {[%emt 0:00:07]} Qxc5 {[%emt 0:00:07]} 6. b4 {[%emt 0:00:03]} Qc7 {[%emt 0:00:09]} 7. Bb2 {[%emt 0:00:06]} Bg7 {[%emt 0:00:29]} 8. e3 {[%emt 0:00:06]} O-O {[%emt 0:00:45]} 9. Be2 {[%emt 0:01:14]} d6 {[%emt 0:00:40]} 10. c4 {[%emt 0:00:35]} b6 {[%emt 0:00:15]} 11. O-O {[%emt 0:00:11]} Bb7 {[%emt 0:00:19]} 12. Qb3 {[%emt 0:00:07]} Nbd7 {[%emt 0:01:48] A48: 1 d4 Nf6 2 Nf3 g6: Torre, London and Colle Systems.} 13. Rfc1 {[%emt 0:00:11]} Rac8 {[%emt 0:03:35]} 14. Bc3 {[%emt 0:01:42]} (14. Rd1 {seems wilder.} Rfd8 15. Ng5 a6 16. Rac1) 14... Qb8 {[%emt 0:04:38]} 15. Qb2 {[%emt 0:13:32] [#]} e5 $146 {[%emt 0:07:21]} ({Predecessor:} 15... Rc7 16. a4 e5 17. a5 Rfc8 18. axb6 axb6 19. Qa3 Re8 20. Bb2 Bf8 21. h3 Qd8 {½-½ (39) Mateuta,G (2504)-Miroshnichenko,E (2642) Plovdiv 2008}) 16. h3 {[%emt 0:14:02]} Rfe8 {[%emt 0:06:44]} 17. a4 {[%emt 0:09:19]} Bc6 {[%emt 0:10:44]} 18. Qb3 {[%emt 0:07:47]} h6 {[%emt 0:08:38]} 19. Ra2 {[%emt 0:11:58]} Rc7 {[%emt 0:04:49]} 20. Rac2 {[%emt 0:07:58]} Rec8 {[%emt 0:14:57][%cal Oa7a5]} 21. a5 {[%emt 0:08:17]} bxa5 {[%emt 0:03:33]} 22. b5 {[%emt 0:00:31]} Nc5 {[%emt 0:01:08]} 23. Qa3 {[%emt 0:01:08]} Ba8 {[%emt 0:01:44]} 24. Bxa5 {[%emt 0:01:12]} Re7 {[%emt 0:01:09]} 25. Nb3 {[%emt 0:01:45]} Nfe4 {[%emt 0:02:55]} 26. Nfd2 {[%emt 0:03:35]} Bf8 {[%emt 0:07:03]} 27. Nxe4 {[%emt 0:01:22]} Nxe4 {[%emt 0:01:02]} 28. Bg4 {[%emt 0:04:45]} f5 {[%emt 0:06:38]} 29. Bf3 {[%emt 0:00:05]} Rf7 {[%emt 0:00:07]} 30. Bb4 {[%emt 0:00:49]} Qb6 {[%emt 0:01:54]} 31. Ba5 {[%emt 0:03:22]} Qb8 {[%emt 0:01:33]} 32. Bb4 {[%emt 0:00:04]} Qb6 $1 {[%emt 0:00:05]} 33. Ba5 {[%emt 0:01:11]} Qb8 $1 {[%emt 0:00:08] Weighted Error Value: White=0.21 (precise) /Black=0.09 (flawless)} 1/2-1/2

[Event "Romanian Superleague 2022"]
[Site "Oradea"]
[Date "2022.09.21"]
[Round "1.10"]
[White "Filip, Andrei"]
[Black "Parligras, Mircea-Emilian"]
[Result "1/2-1/2"]
[ECO "B99"]
[WhiteElo "2356"]
[BlackElo "2560"]
[Annotator "TA"]
[PlyCount "58"]
[EventDate "2022.09.21"]
[EventType "team-tourn"]
[EventCountry "ROU"]
[SourceTitle "playchess.com"]
[Source "ChessBase"]
[SourceQuality "1"]
[TimeControl "40/5400+30:1800+30"]

{[%evp 22,58,66,61,68,78,121,127,169,193,217,21,25,26,17,13,17,17,10,18,3,16,6,20,8,19,15,6,18,22,63,45,54,82,80,84,64,45,84]} 1. e4 {[%emt 0:00:12]} c5 {[%emt 0:00:06]} 2. Nf3 {[%emt 0:00:30]} d6 {[%emt 0:00:30]} 3. d4 {[%emt 0:00:30]} cxd4 {[%emt 0:00:30]} 4. Nxd4 {[%emt 0:00:30]} Nf6 {[%emt 0:00:30]} 5. Nc3 {[%emt 0:00:30]} a6 {[%emt 0:00:30]} 6. Bg5 {[%emt 0:00:30]} e6 {[%emt 0:00:30]} 7. f4 {[%emt 0:00:30]} Be7 {[%emt 0:00:30]} 8. Qf3 {[%emt 0:00:30]} Qc7 {[%emt 0:00:30]} 9. O-O-O {[%emt 0:00:30][%cal Ba1d1,Bd1d4,Bd4d5,Bd5d6][%mdl 32]} Nbd7 {[%emt 0:00:30]} 10. g4 {[%emt 0:00:30]} h6 {[%emt 0:00:30]} 11. Bxf6 {[%emt 0:00:30]} Bxf6 {[%emt 0:00:30]} 12. h4 {[%emt 0:00:30] White is more active.} Bxd4 {[%emt 0:00:30] 12...Nb6 gains popularity. B99: Sicilian Najdorf: 6 Bg5 e6 7 f4 Be7 8 Qf3 Qc7 9 0-0-0 Nbd7.} 13. Rxd4 {[%emt 0:00:30] [#]} Qc5 $146 {[%emt 0:00:30]} ({Predecessor:} 13... b5 14. Be2 Bb7 15. Rhd1 Rc8 16. a3 Nb6 17. f5 Na4 18. Rxd6 O-O 19. Rd7 Qc6 20. R7d3 {½-½ (38) Sevian,S (2578)-Gabuzyan,H (2589) Martuni 2015}) 14. Qd3 {[%emt 0:00:30]} e5 {[%emt 0:00:30] [#] White is better.} 15. Rd5 {[%emt 0:00:30]} ({Resist} 15. Rxd6 exf4 16. Qd2 Qe3 $16) 15... Qc7 {[%emt 0:00:30]} 16. f5 $2 {[%emt 0:00:30]} (16. Rxd6 $18 {Threatens to win with Be2.} Rb8 17. f5) 16... b5 $1 $11 {[%emt 0:00:30]} 17. Rxd6 {[%emt 0:00:30]} b4 {[%emt 0:00:30]} 18. Na4 {[%emt 0:00:30]} Ke7 $1 {[%emt 0:00:30]} 19. Rd5 {[%emt 0:00:30]} Bb7 {[%emt 0:00:30] [#]} 20. Rxd7+ {[%emt 0:00:30]} Qxd7 {[%emt 0:00:30]} 21. Qxd7+ {[%emt 0:00:30]} Kxd7 {[%emt 0:00:30]} 22. Nb6+ {[%emt 0:00:30]} Kd6 {[%emt 0:00:30]} 23. Nxa8 {[%emt 0:00:30] Strongly threatening Nb6.} Bxe4 {[%emt 0:00:30]} 24. Rh2 {[%emt 0:00:30] Hoping for Nb6.} Rxa8 {[%emt 0:00:30]} 25. Rd2+ {[%emt 0:00:30]} Kc7 {[%emt 0:00:30]} 26. Re2 $1 {[%emt 0:00:30]} Bf3 {[%emt 0:00:30][%csl LRe2,LRg4]} 27. Rxe5 {[%emt 0:00:30]} Kd6 {[%emt 0:00:30] [#] Prevents Re7.} 28. Ra5 {[%emt 0:00:30]} Bxg4 {[%emt 0:00:30]} 29. Bc4 {[%emt 0:00:30]} Ra7 {[%emt 0:00:30] Weighted Error Value: White=0.23 (precise) /Black=0.12 (very precise)} 1/2-1/2

[Event "Romanian Superleague 2022"]
[Site "Oradea"]
[Date "2022.09.21"]
[Round "1.11"]
[White "Gavrilescu, David"]
[Black "Nastore, Pavel-Alexandru"]
[Result "1/2-1/2"]
[ECO "C28"]
[WhiteElo "2523"]
[BlackElo "2279"]
[Annotator "TA"]
[PlyCount "37"]
[EventDate "2022.09.21"]
[EventType "team-tourn"]
[EventCountry "ROU"]
[SourceTitle "playchess.com"]
[Source "ChessBase"]
[SourceQuality "1"]
[TimeControl "40/5400+30:1800+30"]

{[%evp 9,37,-2,7,10,8,4,5,3,24,10,25,25,19,0,10,-13,0,-33,-19,-25,-25,-48,0,0,0,0,0,0,0,0]} 1. e4 {[%emt 0:00:17]} e5 {[%emt 0:00:12]} 2. Nc3 {[%emt 0:06:24]} Nc6 {[%emt 0:01:03]} 3. Bc4 {[%emt 0:00:47]} Nf6 {[%emt 0:00:05]} 4. d3 {[%emt 0:00:31]} Na5 {[%emt 0:00:17]} 5. Qf3 {[%emt 0:00:51]} Nxc4 {[%emt 0:08:46]} 6. dxc4 {[%emt 0:00:40] C28: Vienna Game: 2...Nf6 3 Bc4 Nc6.} d6 {[%emt 0:00:10]} 7. Nge2 {[%emt 0:01:27][%cal Bg1e2,Be2g3,Bg3f5][%mdl 32]} Be6 $1 {[%emt 0:02:46] The main line 7...Be6 scores better than 7...Be7.} 8. b3 {[%emt 0:00:12]} c6 {[%emt 0:02:35]} 9. O-O {[%emt 0:01:09]} Qc7 {[%emt 0:15:01]} 10. h3 {[%emt 0:06:02] [#]} O-O-O $146 {[%emt 0:08:15]} ({Predecessor:} 10... Be7 11. Rd1 h6 12. Ng3 g6 13. a4 a5 14. Ba3 Rd8 15. Qe3 h5 16. Rd3 h4 {0-1 (52) Fillon,D (2138)-Flear,G (2530) St Chely d'Aubrac 2002}) 11. Ng3 {[%emt 0:17:27]} Kb8 {[%emt 0:14:19]} 12. Be3 {[%emt 0:05:11]} Rg8 {[%emt 0:04:54]} 13. Rfd1 {[%emt 0:09:53]} Be7 {[%emt 0:15:27]} 14. Nf5 {[%emt 0:00:36]} g5 {[%emt 0:01:27]} 15. c5 {[%emt 0:10:48]} dxc5 {[%emt 0:01:22]} (15... d5 $1 $15 16. exd5 Nxd5) 16. Rxd8+ $11 {[%emt 0:06:56] The position is equal.} Qxd8 {[%emt 0:00:07]} 17. Rd1 {[%emt 0:00:05]} Qc7 {[%emt 0:10:00]} 18. Nxe7 {[%emt 0:18:48]} Qxe7 {[%emt 0:00:01]} 19. Bxc5 $1 {[%emt 0:03:25] Weighted Error Value: White=0.10 (very precise) /Black=0.08 (flawless)} 1/2-1/2